fUSD/lending_fUSD_20241121
["ID","MTS","AMOUNT","RATE_DAILY","PERIOD"]
[342956875,1732221035574,-421.93189668,0.00050053,120]
[342956876,1732221035583,-150.0,0.000501,120]
[342956877,1732221035592,-150.0,0.00050128,120]
[342956878,1732221035603,-150.0,0.00050136,120]
[342956879,1732221035611,-421.93189668,0.0005016,120]
[342956880,1732221035621,-151.112205,0.00050198,120]
[342956881,1732221035630,-800.0,0.00050247,120]
[342956882,1732221035639,-520.78,0.00050264,120]
[342956883,1732221035649,-281.1,0.00050272,120]
[342956884,1732221035659,-500.0,0.00050272,60]
[342956885,1732221035668,-150.0,0.00050273,120]
[342956886,1732221035679,-203.0,0.0005028,30]
[342956887,1732221035688,-206.0,0.0005028,30]
[342956888,1732221035697,-151.112205,0.00050298,120]
[342956889,1732221035706,-500.0,0.00050351,120]
[342956890,1732221035715,-526.26,0.00050363,120]
[342956891,1732221035726,-150.0,0.00050383,120]
[342956892,1732221035736,-151.112205,0.00050398,120]
[342956893,1732221035749,-5000.0,0.000504,120]
[342956894,1732221035759,-150.0,0.0005041,120]
[342956895,1732221035767,-2711.0,0.00050478,53]
[342956896,1732221035786,-151.112205,0.00050498,120]
[342956897,1732221035797,-1943.36060005,0.00050499,120]
[342956898,1732221035806,-30453.25556848,0.000505,120]
[342956899,1732221035816,-20799.64068787,0.000505,120]
[342956900,1732221035825,-1054.0,0.000505,30]
[342956901,1732221035835,-2500.0,0.000505,120]
[342956902,1732221035844,-2094.2984935,0.00050503,2]
[342956903,1732221035854,-691.7609318,0.00050503,2]
[342956904,1732221035863,-1458.4795475,0.00050503,2]
[342956905,1732221035873,-781.17,0.00050538,120]
[342956906,1732221035882,-304.19,0.00050546,60]
[342956907,1732221035891,-150.0,0.00050547,120]
[342956908,1732221035901,-151.112205,0.00050598,120]
[342956909,1732221035910,-500.0,0.00050599,120]
[342956910,1732221035919,-979.84,0.00050599,120]
[342956911,1732221035931,-100000.0,0.000506,120]
[342956912,1732221035940,-150.0,0.00050684,120]
[342956913,1732221035950,-2000.0,0.00050685,120]
[342956914,1732221035959,-1171.8,0.00050699,120]
[342956915,1732221035968,-100000.0,0.000507,120]
[342956916,1732221035978,-2641.3,0.000507,7]
[342956917,1732221035987,-397.849,0.000507,120]
[342956918,1732221035997,-157.112205,0.00050798,120]
[342956919,1732221036006,-166.98155389,0.00050799,120]
[342956920,1732221036016,-979.84,0.00050799,120]
[342956921,1732221036026,-100000.0,0.000508,120]
[342956922,1732221036035,-300.0,0.000508,18]
[342956923,1732221036044,-1041.56,0.00050812,120]
[342956924,1732221036053,-150.0,0.00050821,120]
[342956925,1732221036062,-1171.8,0.00050899,120]
[342956926,1732221036072,-100000.0,0.000509,120]
[342956927,1732221036081,-296.32382224,0.000509,120]
[342956928,1732221036091,-700.0,0.000509,18]
[342956929,1732221036103,-421.93189668,0.00050901,120]
[342956930,1732221036112,-150.0,0.00050947,120]
[342956931,1732221036122,-150.0,0.00050958,120]
[342956932,1732221036132,-150.0,0.00050997,120]
[342956933,1732221036142,-1171.8,0.00050999,120]
[342956934,1732221036153,-979.84,0.00050999,120]
[342956935,1732221036162,-979.84,0.00050999,120]
[342956936,1732221036173,-50000.0,0.00051,41]
[342956937,1732221036182,-50000.0,0.00051,51]
[342956938,1732221036192,-161342.84577373,0.00051,30]
[342956939,1732221036201,-600.0,0.00051,120]
[342956940,1732221036211,-2000.0,0.00051,120]
[342956941,1732221036220,-1001.0,0.00051,60]
[342956942,1732221036229,-100000.0,0.00051,120]
[342956943,1732221036238,-640.14079741,0.00051,120]
[342956944,1732221036248,-165.41434442,0.00051,33]
[342956945,1732221036257,-900.0,0.00051,52]
[342956946,1732221036267,-771.23349732,0.00051,33]
[342956947,1732221036276,-150.0,0.00051,7]
[342956948,1732221036285,-750.0,0.00051,2]
[342956949,1732221036294,-1077.02554634,0.00051,60]
[342956950,1732221036304,-340.26834979,0.00051029,2]
[342956951,1732221036314,-50000.0,0.00051051,30]
[342956952,1732221036323,-1301.95,0.00051086,120]
[342956953,1732221036333,-150.0,0.00051095,120]
[342956954,1732221036342,-1171.8,0.00051099,120]
[342956955,1732221036351,-100000.0,0.000511,120]
[342956956,1732221036361,-201.6,0.000511,52]
[342956957,1732221036370,-1260.0,0.00051121,120]
[342956958,1732221036380,-815.0,0.00051121,2]
[342956959,1732221036389,-632.0,0.00051121,120]
[342956960,1732221036399,-150.0,0.00051121,120]
[342956961,1732221036407,-1709.305665,0.0005113,120]
[342956962,1732221036416,-421.93189668,0.00051196,120]
[342956963,1732221036426,-150.112204,0.00051198,120]
[342956964,1732221036436,-35504.44106223,0.000512,120]
[342956965,1732221036445,-393.21275534,0.000512,120]
[342956966,1732221036455,-150.0,0.00051232,120]
[342956967,1732221036465,-150.0,0.0005133,30]
[342956968,1732221036474,-1562.34,0.0005136,120]
[342956969,1732221036483,-150.0,0.00051369,120]
[342956970,1732221036492,-247.99545,0.000514,120]
[342956971,1732221036502,-150.0,0.000514,120]
[342956972,1732221036511,-421.93189671,0.00051489,120]
[342956973,1732221036521,-157.112205,0.00051498,120]
[342956974,1732221036530,-800.0,0.000515,120]
[342956975,1732221036540,-200.0,0.000515,120]
[342956976,1732221036549,-3000.0,0.000515,2]
[342956977,1732221036559,-150.0,0.00051506,120]
[342956978,1732221036568,-151.96,0.00051527,120]
[342956979,1732221036577,-1171.8,0.00051599,120]
[342956980,1732221036587,-979.84,0.00051599,120]
[342956981,1732221036596,-200248.63573086,0.000516,120]
[342956982,1732221036606,-1822.73,0.00051634,120]
[342956983,1732221036615,-150.0,0.00051643,120]
[342956984,1732221036625,-150.0,0.00051683,120]
[342956985,1732221036634,-500.0,0.00051683,120]
[342956986,1732221036644,-2000.0,0.00051683,120]
[342956987,1732221036654,-422.957945,0.00051683,120]
[342956988,1732221036664,-200.0,0.00051683,120]
[342956989,1732221036673,-150.0,0.0005178,120]
[342956990,1732221036683,-150.112204,0.00051798,120]
[342956991,1732221036692,-500.0,0.000518,120]
[342956992,1732221036702,-1100.0,0.000518,18]
[342956993,1732221036711,-152.32,0.00051836,2]
[342956994,1732221036891,-36382.97136839,0.0005188,30]
[342956995,1732221036901,-1400.0,0.000519,18]
[342956996,1732221036910,-2083.12,0.00051908,120]
[342956997,1732221036919,-150.0,0.00051917,120]
[342956998,1732221036931,-150.0,0.00051926,120]
[342956999,1732221036940,-150.5,0.0005197,30]
[342957000,1732221036949,-150.5,0.0005198,30]
[342957001,1732221036959,-150.5,0.0005199,30]
[342957002,1732221036969,-1677.37339294,0.00051998,2]
[342957003,1732221036979,-979.84,0.00051998,120]
[342957004,1732221036988,-47781.27,0.00051999,2]
[342957005,1732221036997,-1171.8,0.00051999,120]
[342957006,1732221037007,-1171.8,0.00051999,120]
[342957007,1732221037016,-1171.8,0.00051999,120]
[342957008,1732221037025,-979.84,0.00051999,120]
[342957009,1732221037033,-979.84,0.00051999,120]
[342957010,1732221037043,-979.84,0.00051999,120]
[342957011,1732221037052,-50000.0,0.00052,52]
[342957012,1732221037062,-50000.0,0.00052,40]
[342957013,1732221037071,-11000.0,0.00052,120]
[342957014,1732221037081,-3332.847564,0.00052,120]
[342957015,1732221037091,-410.27309885,0.00052,120]
[342957016,1732221037100,-200.0,0.00052,120]
[342957017,1732221037110,-607423.4126713,0.00052,120]
[342957018,1732221037119,-11208.88808401,0.00052,120]
[342957019,1732221037128,-900.0,0.00052,53]
[342957020,1732221037137,-2555.93686989,0.00052,120]
[342957021,1732221037146,-150.0,0.00052,100]
[342957022,1732221037155,-700717.58372282,0.00052054,36]
[342957023,1732221037164,-3540.15496461,0.00052054,61]
[342957024,1732221037175,-150.0,0.00052054,120]
[342957025,1732221037184,-1015.69,0.00052054,120]
[342957026,1732221037193,-2000.0,0.00052054,120]
[342957027,1732221037203,-1807.61898931,0.00052054,120]
[342957028,1732221037212,-200.0,0.00052055,60]
[342957029,1732221037221,-1700.83374074,0.000521,10]
[342957030,1732221037230,-2343.51,0.00052182,120]
[342957031,1732221037239,-150.0,0.00052191,120]
[342957032,1732221037249,-157.112205,0.00052198,120]
[342957033,1732221037258,-1171.8,0.00052199,120]
[342957034,1732221037268,-50000.0,0.000522,120]
[342957035,1732221037278,-150.0,0.00052328,120]
[342957036,1732221037288,-1015.69,0.00052328,120]
[342957037,1732221037297,-2603.9,0.00052456,120]
[342957038,1732221037306,-276.0981495,0.00052465,120]
[342957039,1732221037316,-2000.0,0.00052485,120]
[342957040,1732221037328,-155.42825,0.00052494,120]
[342957042,1732221037338,-150.112204,0.00052498,120]
[342957044,1732221037348,-200.0,0.000525,120]
[342957046,1732221037357,-205.62028746,0.000525,101]
[342957048,1732221037366,-1000.0,0.00052536,120]
[342957050,1732221037376,-250.0,0.000526,30]
[342957051,1732221037385,-1015.69,0.00052602,120]
[342957052,1732221037394,-500.0,0.00052683,120]
[342957053,1732221037403,-2864.29,0.0005273,120]
[342957054,1732221037413,-200.0,0.00052744,120]
[342957055,1732221037422,-1559.78674453,0.00052759,30]
[342957056,1732221037436,-157.112205,0.00052798,120]
[342957057,1732221037448,-1015.69,0.00052876,120]
[342957058,1732221037457,-150.0,0.00052946,120]
[342957059,1732221037466,-526.26,0.00052947,120]
[342957060,1732221037476,-2603.0,0.00052996,3]
[342957061,1732221037486,-1000.0,0.00052999,120]
[342957062,1732221037495,-979.84,0.00052999,120]
[342957063,1732221037505,-50000.0,0.00053,43]
[342957064,1732221037515,-50000.0,0.00053,53]
[342957065,1732221037524,-571.97314794,0.00053,2]
[342957066,1732221037534,-255.14,0.00053,30]
[342957067,1732221037543,-2045.64,0.00053,30]
[342957068,1732221037552,-13551.0,0.00053,30]
[342957069,1732221037561,-200.0,0.00053,120]
[342957070,1732221037571,-2999.97,0.00053,30]
[342957071,1732221037583,-1717.18,0.00053,30]
[342957072,1732221037594,-900.0,0.00053,54]
[342957073,1732221037603,-800.0,0.00053,2]
[342957074,1732221037612,-2073.96553994,0.00053,120]
[342957075,1732221037622,-3124.68,0.00053004,120]
[342957076,1732221037631,-614.97,0.00053006,120]
[342957077,1732221037641,-1054.0,0.00053025,30]
[342957078,1732221037650,-150.0,0.00053102,120]
[342957079,1732221037659,-150.0,0.00053102,2]
[342957080,1732221037668,-1015.69,0.0005315,120]
[342957081,1732221037680,-150.112204,0.00053198,120]
[342957082,1732221037689,-265.0,0.000532,2]
[342957083,1732221037698,-3385.07,0.00053278,120]
[342957084,1732221037707,-2000.0,0.00053287,120]
[342957085,1732221037716,-150.0,0.000533,120]
[342957086,1732221037725,-443.37006481,0.0005331,2]
[342957087,1732221037736,-1199.79537095,0.0005341,30]
[342957088,1732221037747,-1015.69,0.00053424,120]
[342957089,1732221037757,-157.112205,0.00053498,120]
[342957090,1732221037766,-180000.0,0.000535,120]
[342957091,1732221037775,-200.0,0.000535,120]
[342957092,1732221037785,-5170.20870777,0.000535,120]
[342957093,1732221037794,-1301.98274864,0.00053552,120]
[342957094,1732221037803,-303.09474927,0.00053561,120]
[342957095,1732221037812,-302.4900304,0.00053561,2]
[342957096,1732221037823,-1000.0,0.00053562,30]
[342957097,1732221037832,-152.34,0.000536,54]
[342957098,1732221037842,-152.34,0.000536,54]
[342957099,1732221037851,-152.34,0.000536,54]
[342957100,1732221037860,-152.34,0.000536,54]
[342957101,1732221037869,-152.34,0.000536,54]
[342957102,1732221037879,-152.34,0.000536,54]
[342957103,1732221037888,-152.34,0.000536,54]
[342957104,1732221037898,-152.34,0.000536,54]
[342957105,1732221037907,-152.34,0.000536,54]
[342957106,1732221037917,-152.34,0.000536,54]
[342957107,1732221037930,-152.34,0.000536,54]
[342957108,1732221037940,-152.34,0.000536,54]
[342957109,1732221037950,-152.34,0.000536,54]
[342957110,1732221037959,-152.34,0.000536,54]
[342957111,1732221037968,-979.84,0.00053659,120]
[342957112,1732221037977,-979.84,0.00053659,120]
[342957113,1732221037986,-979.84,0.00053659,120]
[342957114,1732221037996,-1171.8,0.0005366,120]
[342957115,1732221038005,-1171.8,0.0005366,120]
[342957116,1732221038015,-1171.8,0.0005366,120]
[342957117,1732221038024,-979.84,0.0005366,120]
[342957118,1732221038034,-979.84,0.0005366,120]
[342957119,1732221038043,-8028.13846877,0.00053661,120]
[342957121,1732221038053,-99826.1143555,0.00053661,7]
[342957122,1732221038062,-28984.9697422,0.00053661,7]
[342957123,1732221038072,-2974.84284862,0.00053661,7]
[342957124,1732221038082,-12250.0398572,0.00053661,7]
[342957125,1732221038091,-18581.5709228,0.00053661,7]
[342957126,1732221038100,-933.79200013,0.00053661,7]
[342957127,1732221038109,-138586.911693,0.00053661,7]
[342957128,1732221038118,-284988.918051,0.00053661,7]
[342957129,1732221038127,-1015.69,0.00053698,120]
[342957130,1732221038136,-1000.0,0.00053699,30]
[342957131,1732221038145,-176.0,0.00053756,2]
[342957132,1732221038154,-151.29,0.00053756,2]
[342957134,1732221038164,-150.112204,0.00053798,120]
[342957135,1732221038174,-1171.8,0.00053799,120]
[342957138,1732221038183,-1171.8,0.00053799,120]
[342957139,1732221038193,-1171.8,0.00053799,120]
[342957141,1732221038202,-42750.0,0.000538,120]
[342957143,1732221038211,-200.0,0.00053804,120]
[342957145,1732221038221,-1000.0,0.00053836,30]
[342957147,1732221038231,-2711.68217071,0.0005389,61]
[342957149,1732221038240,-24832.30535702,0.000539,120]
[342957151,1732221038249,-1800.0,0.000539,19]
[342957153,1732221038259,-259.08,0.00053934,120]
[342957155,1732221038268,-150.5,0.0005397,30]
[342957158,1732221038277,-1015.69,0.00053972,120]
[342957159,1732221038286,-1000.0,0.00053973,30]
[342957161,1732221038296,-150.5,0.0005398,30]
[342957163,1732221038305,-150.5,0.0005399,30]
[342957164,1732221038315,-979.84,0.00053998,120]
[342957165,1732221038324,-1000.0,0.00053999,120]
[342957166,1732221038333,-1171.8,0.00053999,120]
[342957167,1732221038343,-50000.0,0.00054,44]
[342957168,1732221038352,-50000.0,0.00054,53]
[342957169,1732221038361,-17864.03464187,0.00054,120]
[342957170,1732221038371,-39999.999999,0.00054,120]
[342957171,1732221038380,-850.0,0.00054,120]
[342957172,1732221038390,-600.0,0.00054,120]
[342957173,1732221038399,-10000.0,0.00054,120]
[342957174,1732221038409,-38750.0,0.00054,120]
[342957175,1732221038419,-900.0,0.00054,55]
[342957176,1732221038430,-248.93,0.00054,120]
[342957177,1732221038439,-248.93,0.00054,120]
[342957178,1732221038449,-248.93,0.00054,120]
[342957179,1732221038458,-248.93,0.00054,120]
[342957180,1732221038467,-248.93,0.00054,120]
[342957181,1732221038477,-248.93,0.00054,120]
[342957182,1732221038486,-248.93,0.00054,120]
[342957183,1732221038495,-248.93,0.00054,120]
[342957184,1732221038505,-248.93,0.00054,120]
[342957185,1732221038514,-248.93,0.00054,120]
[342957186,1732221038524,-248.93,0.00054,120]
[342957187,1732221038533,-248.93,0.00054,120]
[342957188,1732221038543,-248.93,0.00054,120]
[342957189,1732221038552,-248.93,0.00054,120]
[342957190,1732221038561,-248.93,0.00054,120]
[342957191,1732221038571,-248.93,0.00054,120]
[342957192,1732221038581,-248.93,0.00054,120]
[342957193,1732221038591,-248.93,0.00054,120]
[342957194,1732221038601,-248.93,0.00054,120]
[342957195,1732221038611,-248.93,0.00054,120]
[342957196,1732221038621,-248.93,0.00054,120]
[342957197,1732221038631,-248.93,0.00054,120]
[342957198,1732221038640,-248.93,0.00054,120]
[342957199,1732221038649,-248.93,0.00054,120]
[342957200,1732221038659,-248.93,0.00054,120]
[342957201,1732221038669,-248.93,0.00054,120]
[342957202,1732221038681,-248.93,0.00054,120]
[342957203,1732221038690,-248.93,0.00054,120]
[342957204,1732221038699,-248.93,0.00054,120]
[342957205,1732221038709,-248.93,0.00054,120]
[342957206,1732221038719,-248.93,0.00054,120]
[342957207,1732221038728,-248.93,0.00054,120]
[342957208,1732221038737,-248.93,0.00054,120]
[342957209,1732221038750,-248.93,0.00054,120]
[342957210,1732221038760,-248.93,0.00054,120]
[342957211,1732221038769,-248.93,0.00054,120]
[342957212,1732221038779,-248.93,0.00054,120]
[342957213,1732221038789,-248.93,0.00054,120]
[342957214,1732221038798,-248.93,0.00054,120]
[342957215,1732221038808,-248.93,0.00054,120]
[342957216,1732221038819,-248.93,0.00054,120]
[342957217,1732221038829,-248.93,0.00054,120]
[342957218,1732221038839,-248.93,0.00054,120]
[342957219,1732221038848,-2000.0,0.00054088,120]
[342957220,1732221038858,-1000.0,0.0005411,30]
[342957221,1732221038867,-1058.356,0.00054121,120]
[342957222,1732221038877,-632.0,0.00054121,120]
[342957223,1732221038887,-150.0,0.00054121,120]
[342957224,1732221038896,-150.0,0.0005415,120]
[342957225,1732221038906,-157.112205,0.00054198,120]
[342957226,1732221038915,-3000.0,0.000542,2]
[342957227,1732221038928,-150.0,0.00054238,120]
[342957228,1732221038943,-1015.69,0.00054246,120]
[342957229,1732221038953,-1000.0,0.00054247,30]
[342957230,1732221038962,-340.26834979,0.00054265,2]
[342957231,1732221038971,-150.0,0.00054272,120]
[342957232,1732221038981,-397.82,0.000543,120]
[342957233,1732221038990,-1609.85266037,0.0005433,120]
[342957234,1732221039000,-1000.0,0.00054384,30]
[342957235,1732221039010,-979.84,0.00054439,120]
[342957236,1732221039019,-10000.0,0.0005444,30]
[342957237,1732221039028,-150.112204,0.00054498,120]
[342957238,1732221039039,-683.443412,0.000545,30]
[342957239,1732221039048,-546.542,0.0005451,30]
[342957240,1732221039058,-1015.69,0.0005452,120]
[342957241,1732221039067,-1000.0,0.00054521,30]
[342957242,1732221039077,-250.0,0.000546,30]
[342957243,1732221039086,-1000.0,0.00054658,30]
[342957244,1732221039095,-1171.8,0.00054699,120]
[342957245,1732221039104,-1171.8,0.00054699,120]
[342957246,1732221039114,-1171.8,0.00054699,120]
[342957247,1732221039123,-1171.8,0.00054699,120]
[342957248,1732221039134,-1171.8,0.00054699,120]
[342957249,1732221039143,-1171.8,0.00054699,120]
[342957250,1732221039152,-1172.0340293,0.00054699,120]
[342957251,1732221039162,-979.84,0.00054699,120]
[342957252,1732221039208,-979.84,0.00054699,120]
[342957253,1732221039217,-979.84,0.00054699,120]
[342957254,1732221039228,-979.84,0.00054699,120]
[342957255,1732221039237,-979.84,0.00054699,120]
[342957256,1732221039247,-979.97883168,0.00054699,120]
[342957257,1732221039257,-547080.72490661,0.000547,30]
[342957260,1732221039371,-388.79,0.000547,30]
[342957261,1732221039382,-497.65536239,0.000547,30]
[342957262,1732221039405,-10265.3,0.000547,30]
[342957263,1732221039417,-1444.99095466,0.000547,30]
[342957264,1732221039436,-85057.86997359,0.000547,30]
[342957265,1732221039649,-629.0,0.00039272,2]
[342957266,1732221039658,-150.0,0.00041474,120]
[342957267,1732221039668,-629.0,0.00042272,2]
[342957268,1732221039679,-365.8,0.00044732,60]
[342957269,1732221039688,-226.2209601,0.00045272,2]
[342957270,1732221039700,-402.7790399,0.00045272,2]
[342957271,1732221039709,-500.0,0.00047799,11]
[342957272,1732221039718,-501.21182886,0.00048073,11]
[342957273,1732221039728,-629.0,0.00048272,2]
[342957274,1732221039738,-236.83022023,0.00051272,120]
[342957275,1732221039756,-500.0,0.00041315,120]
[342957276,1732221039766,-392.16977977,0.00051272,120]
[342957277,1732221039776,-629.0,0.00054272,120]
[342957278,1732221039787,-6563.62087256,0.000547,30]
[342957279,1732221039798,-3049.8516,0.000547,30]
[342957280,1732221039810,-850.22515272,0.000547,30]
[342957281,1732221039902,-150.0,0.00041915,2]
[342957282,1732221039911,-547.98,0.00044732,60]
[342957283,1732221039920,-150.0,0.00053661,30]
[342957285,1732221039931,-2710.58582448,0.000547,30]
[342957287,1732221039943,-1967.2267326,0.000547,30]
[342957289,1732221039953,-517.20639487,0.000547,30]
[342957310,1732221042591,-2500.0,0.000398,2]
[342957311,1732221042601,-153.19251522,0.00041999,31]
[342957312,1732221042611,-500.0,0.00042016,2]
[342957313,1732221042620,-319.23,0.00044732,60]
[342957314,1732221042629,-841.97,0.00048276,2]
[342957315,1732221042638,-841.97,0.0005054,2]
[342957316,1732221042648,-833.06,0.0005059,10]
[342957317,1732221042657,-841.97,0.00052804,2]
[342957318,1732221042667,-1043.78237309,0.000529,30]
[342957319,1732221042677,-82709.41518969,0.000547,30]
[342957320,1732221042689,-1548.72660075,0.000547,30]
[342957321,1732221042707,-2812.49762892,0.000547,30]
[342957322,1732221042718,-7199.58643462,0.000547,30]
[342957323,1732221042730,-21022.034,0.000547,30]
[342957324,1732221042742,-2933.17098052,0.000547,30]
[342957325,1732221042762,-3177.86919255,0.000547,30]
[342957355,1732221045613,-150.0,0.00042289,120]
[342957357,1732221045622,-500.0,0.00042334,120]
[342957359,1732221045631,-150.0,0.00050194,2]
[342957361,1732221045640,-1118.05699362,0.0005292,30]
[342957363,1732221045649,-6620.507458,0.000547,30]
[342957369,1732221045695,-18829.90164055,0.000547,30]
[342957387,1732221045889,-9879.3380376,0.000547,30]
[342957394,1732221045949,-921.84749725,0.000547,30]
[342957396,1732221045960,-591.90244678,0.000547,30]
[342957451,1732222231748,-166.24,0.00015342,2]
[342957453,1732222231758,-189.65,0.00016712,2]
[342957455,1732222231768,-75.26035491,0.00016862,2]
[342957460,1732222231803,-74.73964509,0.00016862,2]
[342957462,1732222231812,-303.84,0.00019178,2]
[342957464,1732222231826,-166.24,0.00021745,2]
[342957466,1732222231835,-303.84,0.00024658,2]
[342957468,1732222231845,-150.0,0.00026849,2]
[342957470,1732222231854,-2032.72397948,0.00026885,2]
[342957471,1732222231864,-2032.72397947,0.00026886,2]
[342957473,1732222231874,-300.0,0.00026985,2]
[342957475,1732222231883,-200.0,0.00026985,15]
[342957477,1732222231892,-800.0,0.00026986,120]
[342957479,1732222231904,-800.0,0.00026986,120]
[342957481,1732222231913,-800.0,0.00026986,120]
[342957483,1732222231923,-800.0,0.00026986,120]
[342957484,1732222231932,-800.0,0.00026986,120]
[342957485,1732222231942,-800.0,0.00026986,120]
[342957486,1732222231951,-800.0,0.00026986,120]
[342957487,1732222231961,-800.0,0.00026986,120]
[342957488,1732222231971,-800.0,0.00026986,120]
[342957489,1732222231980,-800.0,0.00026986,120]
[342957490,1732222231990,-280.34,0.00026986,120]
[342957491,1732222231999,-169.1,0.00027545,2]
[342957492,1732222232009,-166.24,0.00028147,2]
[342957493,1732222232018,-179.38590469,0.00030137,2]
[342957494,1732222232028,-303.84,0.00030137,2]
[342957495,1732222232038,-689.29653697,0.0003062,2]
[342957496,1732222232050,-502.37131397,0.0003062,2]
[342957497,1732222232066,-857.57214906,0.0003062,2]
[342957498,1732222232079,-460.46467959,0.0003062,2]
[342957499,1732222232102,-4903.87532041,0.0003062,2]
[342957500,1732222232114,-474.94,0.0003062,2]
[342957501,1732222232128,-213.92369867,0.000309,2]
[342957502,1732222232138,-250.0,0.00031,2]
[342957503,1732222232148,-189.65,0.00031055,2]
[342957505,1732222232158,-205.98076749,0.0003151,30]
[342957507,1732222232168,-500.0,0.0003151,30]
[342957509,1732222232178,-605.58778572,0.00031945,120]
[342957511,1732222232188,-300.0,0.00033,2]
[342957513,1732222232198,-250.0,0.00033473,120]
[342957515,1732222232208,-250.0,0.00033551,2]
[342957517,1732222232218,-1243.72,0.00033681,2]
[342957519,1732222232227,-394.69,0.00034056,120]
[342957521,1732222232237,-172.72,0.00034212,120]
[342957523,1732222232246,-308.21242771,0.00034325,2]
[342957559,1732222232588,-378.25609224,0.00034325,2]
[342957561,1732222232600,-4764.28148005,0.00034325,2]
[342957563,1732222232609,-150.0,0.00034548,10]
[342957564,1732222232619,-166.24,0.00034549,2]
[342957565,1732222232629,-3342.72,0.0003455,2]
[342957566,1732222232639,-500.0,0.00034659,2]
[342957567,1732222232648,-5379.77,0.00034696,2]
[342957568,1732222232657,-250.0,0.00034704,2]
[342957569,1732222232667,-591.78,0.00034767,2]
[342957570,1732222232677,-350.0,0.00035,2]
[342957571,1732222232686,-150.0,0.00035001,2]
[342957572,1732222232695,-775.41,0.00035177,2]
[342957573,1732222232704,-303.84,0.00035616,2]
[342957574,1732222232714,-715.67,0.00036087,2]
[342957575,1732222232723,-754.01,0.00036114,120]
[342957576,1732222232732,-23900.0,0.00036485,2]
[342957577,1732222232741,-394.69,0.0003664,120]
[342957578,1732222232750,-1000.0,0.00036701,2]
[342957579,1732222232759,-400.0,0.00037,2]
[342957580,1732222232768,-618.8341807,0.00037238,120]
[342957581,1732222232778,-1759.0,0.000375,3]
[342957582,1732222232787,-715.67,0.00038351,2]
[342957583,1732222232796,-450.0,0.00039,2]
[342957584,1732222232806,-394.69,0.00039224,120]
[342957585,1732222232815,-718.6552,0.000397,2]
[342957586,1732222232826,-1251.599,0.00039799,56]
[342957587,1732222232835,-292.08678188,0.00039799,15]
[342957588,1732222232845,-22693.19335745,0.000398,2]
[342957589,1732222232857,-621.77146932,0.000398,2]
[342957591,1732222232868,-1099.97243844,0.000398,2]
[342957603,1732222239660,-838.755,0.000398,2]
[342957604,1732222239672,-637.06000004,0.000398,2]
[342957605,1732222239878,-634.17825975,0.000398,2]
[342957616,1732222242784,-104.84284854,0.000398,2]
[342957617,1732222242883,-5386.92509788,0.000398,2]
[342957618,1732222243047,-2213.02005317,0.000398,2]
[342957619,1732222243058,-401.00195495,0.000398,2]
[342957630,1732222246058,-489.265,0.000398,2]
[342957631,1732222246105,-1055.27970528,0.000398,2]
[342957632,1732222246166,-4935.15580632,0.000398,2]